[Event "November 21 Early 2023"]
[Site "https://www.chess.com"]
[Date "2023.11.21"]
[Round "4"]
[White "Eugene, Floryan"]
[Black "Dmitrenko, Viktor"]
[Result "1-0"]
[Board "162"]
[TimeControl "180+1"]
[WhiteFideId "20694784"]
[BlackFideId "14110270"]
[WhiteElo "2369"]
[BlackElo "2292"]
[WhiteTeam "FRA"]
[BlackTeam "UKR"]
[WhiteClock "0:00:01"]
[BlackClock "0:00:06"]

1. d4 {[%clk 0:03:00]}  e6 {[%clk 0:02:59]} 2. c4 {[%clk 0:02:59]}  Nf6 {[%clk 0:02:58]} 3. g4 {[%clk 0:02:59]}  d5 {[%clk 0:02:46]} 4. g5 {[%clk 0:02:59]}  Ne4 {[%clk 0:02:41]} 5. Bg2 {[%clk 0:02:59]}  Bb4+ {[%clk 0:02:35]} 6. Kf1 {[%clk 0:02:59]}  Nxg5 {[%clk 0:02:18]} 7. Bxg5 {[%clk 0:02:50]}  Qxg5 {[%clk 0:02:15]} 8. Nf3 {[%clk 0:02:51]}  Qe7 {[%clk 0:02:04]} 9. Rg1 {[%clk 0:02:42]}  c6 {[%clk 0:01:52]} 10. Bh1 {[%clk 0:02:40]}  g6 {[%clk 0:01:51]} 11. Nbd2 {[%clk 0:02:31]}  Nd7 {[%clk 0:01:47]} 12. e4 {[%clk 0:02:25]}  dxe4 {[%clk 0:01:46]} 13. Nxe4 {[%clk 0:02:24]}  Nf6 {[%clk 0:01:47]} 14. Qe2 {[%clk 0:02:10]}  Nxe4 {[%clk 0:01:41]} 15. Qxe4 {[%clk 0:02:11]}  Bd6 {[%clk 0:01:41]} 16. Re1 {[%clk 0:02:01]}  Bd7 {[%clk 0:01:35]} 17. Ne5 {[%clk 0:02:00]}  O-O-O {[%clk 0:01:19]} 18. Re3 {[%clk 0:01:25]}  f6 {[%clk 0:01:17]} 19. Nxd7 {[%clk 0:01:19]}  Qxd7 {[%clk 0:01:18]} 20. Qxe6 {[%clk 0:01:20]}  Bxh2 {[%clk 0:01:04]} 21. Rg4 {[%clk 0:01:14]}  f5 {[%clk 0:01:01]} 22. Rh4 {[%clk 0:01:14]}  Qxe6 {[%clk 0:00:50]} 23. Rxe6 {[%clk 0:01:13]}  Bd6 {[%clk 0:00:49]} 24. d5 {[%clk 0:00:57]}  c5 {[%clk 0:00:48]} 25. Bf3 {[%clk 0:00:50]}  Kd7 {[%clk 0:00:47]} 26. Bd1 {[%clk 0:00:40]}  Rdg8 {[%clk 0:00:44]} 27. Ba4+ {[%clk 0:00:40]}  Kc7 {[%clk 0:00:43]} 28. Rh3 {[%clk 0:00:36]}  h5 {[%clk 0:00:39]} 29. Bc2 {[%clk 0:00:30]}  h4 {[%clk 0:00:37]} 30. Kg2 {[%clk 0:00:19]}  Rh5 {[%clk 0:00:32]} 31. Rf3 {[%clk 0:00:18]}  Rg5+ {[%clk 0:00:26]} 32. Kh3 {[%clk 0:00:18]}  Rh8 {[%clk 0:00:26]} 33. Bd3 {[%clk 0:00:14]}  Rg1 {[%clk 0:00:25]} 34. Rf6 {[%clk 0:00:13]}  Be5 {[%clk 0:00:24]} 35. Rf7+ {[%clk 0:00:12]}  Kb8 {[%clk 0:00:24]} 36. Re3 {[%clk 0:00:07]}  Bd6 {[%clk 0:00:22]} 37. Re6 {[%clk 0:00:07]}  Bf4 {[%clk 0:00:18]} 38. Ree7 {[%clk 0:00:05]}  Ka8 {[%clk 0:00:14]} 39. Rxb7 {[%clk 0:00:05]}  Bb8 {[%clk 0:00:14]} 40. Rbd7 {[%clk 0:00:04]}  g5 {[%clk 0:00:14]} 41. Bxf5 {[%clk 0:00:04]}  g4+ {[%clk 0:00:13]} 42. Bxg4 {[%clk 0:00:04]}  Rh1+ {[%clk 0:00:12]} 43. Kg2 {[%clk 0:00:04]}  Rh2+ {[%clk 0:00:13]} 44. Kg1 {[%clk 0:00:05]}  Rg8 {[%clk 0:00:11]} 45. Rg7 {[%clk 0:00:05]}  Rf8 {[%clk 0:00:11]} 46. Rdf7 {[%clk 0:00:05]}  Rh8 {[%clk 0:00:10]} 47. d6 {[%clk 0:00:03]}  Bxd6 {[%clk 0:00:09]} 48. Bf3+ {[%clk 0:00:02]}  Kb8 {[%clk 0:00:10]} 49. Rb7+ {[%clk 0:00:03]}  Kc8 {[%clk 0:00:10]} 50. Rxa7 {[%clk 0:00:03]}  Bb8 {[%clk 0:00:09]} 51. Bg4+ {[%clk 0:00:02]}  Kd8 {[%clk 0:00:09]} 52. Rad7+ {[%clk 0:00:02]}  Ke8 {[%clk 0:00:09]} 53. Rge7+ {[%clk 0:00:02]}  Kf8 {[%clk 0:00:09]} 54. Rb7 {[%clk 0:00:02]}  Bd6 {[%clk 0:00:08]} 55. Red7 {[%clk 0:00:01]}  h3 {[%clk 0:00:06]} 56. Rd8# {[%clk 0:00:01]} 1-0

[Event "November 21 Early 2023"]
[Site "https://www.chess.com"]
[Date "2023.11.21"]
[Round "4"]
[White "Koepke, Christian"]
[Black "Viskelis, Darius"]
[Result "1-0"]
[Board "169"]
[TimeControl "180+1"]
[WhiteFideId "4655737"]
[BlackFideId "12800830"]
[WhiteElo "2238"]
[BlackElo "1859"]
[WhiteTeam "GER"]
[BlackTeam "LTU"]
[WhiteClock "0:00:12"]
[BlackClock "0:00:00"]

1. e4 {[%clk 0:02:59]}  e5 {[%clk 0:02:59]} 2. Nc3 {[%clk 0:02:59]}  Nf6 {[%clk 0:02:56]} 3. d4 {[%clk 0:02:59]}  exd4 {[%clk 0:02:51]} 4. Qxd4 {[%clk 0:03:00]}  Nc6 {[%clk 0:02:50]} 5. Qd3 {[%clk 0:03:01]}  Bc5 {[%clk 0:02:47]} 6. Bf4 {[%clk 0:02:57]}  O-O {[%clk 0:02:39]} 7. Qd2 {[%clk 0:02:37]}  Re8 {[%clk 0:02:29]} 8. f3 {[%clk 0:02:31]}  d5 {[%clk 0:02:20]} 9. O-O-O {[%clk 0:02:30]}  d4 {[%clk 0:02:16]} 10. Nb5 {[%clk 0:02:25]}  Bb6 {[%clk 0:02:14]} 11. Ne2 {[%clk 0:02:23]}  Ba5 {[%clk 0:01:51]} 12. Qd3 {[%clk 0:02:08]}  Nb4 {[%clk 0:01:51]} 13. Qa3 {[%clk 0:02:08]}  c5 {[%clk 0:01:51]} 14. c3 {[%clk 0:01:21]}  a6 {[%clk 0:01:38]} 15. Nd6 {[%clk 0:01:11]}  Be6 {[%clk 0:00:41]} 16. cxb4 {[%clk 0:01:06]}  Bxb4 {[%clk 0:00:32]} 17. Qd3 {[%clk 0:00:58]}  Bxa2 {[%clk 0:00:25]} 18. Nxe8 {[%clk 0:00:54]}  Qxe8 {[%clk 0:00:23]} 19. Bd2 {[%clk 0:00:47]}  Rc8 {[%clk 0:00:21]} 20. Bxb4 {[%clk 0:00:45]}  cxb4+ {[%clk 0:00:18]} 21. Kd2 {[%clk 0:00:46]}  Qa4 {[%clk 0:00:17]} 22. Nxd4 {[%clk 0:00:39]}  Bb3 {[%clk 0:00:14]} 23. Rc1 {[%clk 0:00:32]}  Rd8 {[%clk 0:00:14]} 24. Ke3 {[%clk 0:00:30]}  Be6 {[%clk 0:00:09]} 25. Be2 {[%clk 0:00:24]}  b3 {[%clk 0:00:10]} 26. Rhd1 {[%clk 0:00:19]}  b5 {[%clk 0:00:09]} 27. Kf2 {[%clk 0:00:19]}  Bc4 {[%clk 0:00:06]} 28. Qe3 {[%clk 0:00:18]}  h6 {[%clk 0:00:03]} 29. Nc6 {[%clk 0:00:17]}  Re8 {[%clk 0:00:02]} 30. Bxc4 {[%clk 0:00:16]}  bxc4 {[%clk 0:00:02]} 31. Qc5 {[%clk 0:00:16]}  Qa2 {[%clk 0:00:02]} 32. Rd2 {[%clk 0:00:15]}  c3 {[%clk 0:00:01]} 33. Qxc3 {[%clk 0:00:15]}  Qa4 {[%clk 0:00:01]} 34. Nd4 {[%clk 0:00:14]}  Rxe4 {[%clk 0:00:00]} 35. Qxb3 {[%clk 0:00:12]} 1-0

[Event "November 21 Early 2023"]
[Site "https://www.chess.com"]
[Date "2023.11.21"]
[Round "4"]
[White "Zampronha, Wladimir Camilo"]
[Black "Rodriguez Fontecha, Marcos"]
[Result "0-1"]
[Board "172"]
[TimeControl "180+1"]
[WhiteFideId "2103087"]
[BlackFideId "2256576"]
[WhiteElo "2055"]
[BlackElo "2249"]
[WhiteTeam "BRA"]
[BlackTeam "ESP"]
[WhiteClock "0:02:11"]
[BlackClock "0:02:30"]

1. e4 {[%clk 0:03:00]}  e6 {[%clk 0:02:59]} 2. d4 {[%clk 0:03:00]}  d5 {[%clk 0:02:59]} 3. Nc3 {[%clk 0:03:00]}  Nf6 {[%clk 0:02:59]} 4. e5 {[%clk 0:03:00]}  Nfd7 {[%clk 0:02:59]} 5. f4 {[%clk 0:03:01]}  c5 {[%clk 0:03:00]} 6. Nf3 {[%clk 0:03:01]}  Nc6 {[%clk 0:03:00]} 7. Be3 {[%clk 0:03:01]}  Be7 {[%clk 0:03:01]} 8. Qd2 {[%clk 0:03:00]}  O-O {[%clk 0:03:01]} 9. Be2 {[%clk 0:02:55]}  a6 {[%clk 0:03:00]} 10. O-O {[%clk 0:02:54]}  b5 {[%clk 0:03:00]} 11. dxc5 {[%clk 0:02:53]}  Nxc5 {[%clk 0:03:00]} 12. a3 {[%clk 0:02:47]}  Rb8 {[%clk 0:02:59]} 13. Nd4 {[%clk 0:02:47]}  Qc7 {[%clk 0:02:54]} 14. Nxc6 {[%clk 0:02:47]}  Qxc6 {[%clk 0:02:55]} 15. Bd4 {[%clk 0:02:47]}  Bd7 {[%clk 0:02:51]} 16. Qe3 {[%clk 0:02:47]}  Rfc8 {[%clk 0:02:50]} 17. Rfc1 {[%clk 0:02:46]}  b4 {[%clk 0:02:43]} 18. axb4 {[%clk 0:02:45]}  Rxb4 {[%clk 0:02:44]} 19. b3 {[%clk 0:02:41]}  Rxd4 {[%clk 0:02:39]} 20. Qxd4 {[%clk 0:02:39]}  Nxb3 {[%clk 0:02:38]} 21. cxb3 {[%clk 0:02:29]}  Bc5 {[%clk 0:02:38]} 22. Qxc5 {[%clk 0:02:25]}  Qxc5+ {[%clk 0:02:38]} 23. Kh1 {[%clk 0:02:26]}  Qe3 {[%clk 0:02:31]} 24. Bxa6 {[%clk 0:02:18]}  Rxc3 {[%clk 0:02:30]} 25. Rxc3 {[%clk 0:02:17]}  Qxc3 {[%clk 0:02:31]} 26. Bf1 {[%clk 0:02:11]}  Qxa1 {[%clk 0:02:30]} 0-1

[Event "November 21 Early 2023"]
[Site "https://www.chess.com"]
[Date "2023.11.21"]
[Round "4"]
[White "Panda Sambit"]
[Black "Der_Balak_3Halak"]
[Result "1/2-1/2"]
[Board "173"]
[TimeControl "180+1"]
[WhiteFideId "25091794"]
[WhiteElo "2216"]
[BlackElo "2309"]
[WhiteTeam "IND"]
[WhiteClock "0:01:05"]
[BlackClock "0:00:06"]

1. e4 {[%clk 0:03:00]}  c5 {[%clk 0:02:59]} 2. Nf3 {[%clk 0:03:00]}  g6 {[%clk 0:02:57]} 3. c3 {[%clk 0:02:56]}  Bg7 {[%clk 0:02:54]} 4. d4 {[%clk 0:02:56]}  cxd4 {[%clk 0:02:55]} 5. cxd4 {[%clk 0:02:56]}  d5 {[%clk 0:02:55]} 6. e5 {[%clk 0:02:56]}  Nc6 {[%clk 0:02:54]} 7. h3 {[%clk 0:02:55]}  Bf5 {[%clk 0:02:44]} 8. Nc3 {[%clk 0:02:55]}  Nh6 {[%clk 0:02:34]} 9. Qb3 {[%clk 0:02:53]}  O-O {[%clk 0:02:00]} 10. Be3 {[%clk 0:02:43]}  Rc8 {[%clk 0:01:20]} 11. Be2 {[%clk 0:02:16]}  Be6 {[%clk 0:01:07]} 12. g4 {[%clk 0:01:59]}  f5 {[%clk 0:01:01]} 13. Ng5 {[%clk 0:01:57]}  Bf7 {[%clk 0:00:34]} 14. Nxf7 {[%clk 0:01:44]}  Nxf7 {[%clk 0:00:22]} 15. gxf5 {[%clk 0:01:44]}  Nfxe5 {[%clk 0:00:19]} 16. dxe5 {[%clk 0:01:39]}  Rxf5 {[%clk 0:00:15]} 17. Bg4 {[%clk 0:01:26]}  Rxe5 {[%clk 0:00:10]} 18. Bxc8 {[%clk 0:01:26]}  Qxc8 {[%clk 0:00:11]} 19. Nxd5 {[%clk 0:01:26]}  Qe6 {[%clk 0:00:10]} 20. Nf4 {[%clk 0:01:20]}  Qxb3 {[%clk 0:00:09]} 21. axb3 {[%clk 0:01:21]}  Nd4 {[%clk 0:00:06]} 22. O-O {[%clk 0:01:20]}  Rg5+ {[%clk 0:00:02]} 23. Kh1 {[%clk 0:01:20]}  Nf3 {[%clk 0:00:03]} 24. Ne6 {[%clk 0:01:15]}  Rh5 {[%clk 0:00:02]} 25. Nxg7 {[%clk 0:01:12]}  Kxg7 {[%clk 0:00:03]} 26. Kg2 {[%clk 0:01:12]}  Nh4+ {[%clk 0:00:03]} 27. Kg3 {[%clk 0:01:12]}  Nf5+ {[%clk 0:00:04]} 28. Kh2 {[%clk 0:01:12]}  g5 {[%clk 0:00:02]} 29. Rxa7 {[%clk 0:01:12]}  g4 {[%clk 0:00:02]} 30. h4 {[%clk 0:01:07]}  Rxh4+ {[%clk 0:00:02]} 31. Kg2 {[%clk 0:01:07]}  Rh3 {[%clk 0:00:03]} 32. Rxb7 {[%clk 0:01:06]}  Nh4+ {[%clk 0:00:03]} 33. Kg1 {[%clk 0:01:03]}  Nf3+ {[%clk 0:00:04]} 34. Kg2 {[%clk 0:01:04]}  Nh4+ {[%clk 0:00:04]} 35. Kg1 {[%clk 0:01:04]}  Nf3+ {[%clk 0:00:05]} 36. Kg2 {[%clk 0:01:05]}  Nh4+ {[%clk 0:00:06]} 1/2-1/2

[Event "November 21 Early 2023"]
[Site "https://www.chess.com"]
[Date "2023.11.21"]
[Round "4"]
[White "Orlov, Georgi"]
[Black "AndresDelgado77"]
[Result "1-0"]
[Board "174"]
[TimeControl "180+1"]
[WhiteFideId "2011271"]
[WhiteElo "2494"]
[BlackElo "2301"]
[WhiteTeam "USA"]
[WhiteClock "0:00:44"]
[BlackClock "0:00:00"]

1. d4 {[%clk 0:02:46]}  Nf6 {[%clk 0:01:54]} 2. Nf3 {[%clk 0:02:44]}  c5 {[%clk 0:01:48]} 3. d5 {[%clk 0:02:43]}  b5 {[%clk 0:01:44]} 4. a4 {[%clk 0:02:34]}  Bb7 {[%clk 0:01:13]} 5. axb5 {[%clk 0:02:33]}  Bxd5 {[%clk 0:01:11]} 6. Nc3 {[%clk 0:02:30]}  Bb7 {[%clk 0:01:11]} 7. Bg5 {[%clk 0:02:16]}  Ne4 {[%clk 0:01:00]} 8. Nxe4 {[%clk 0:02:06]}  Bxe4 {[%clk 0:00:59]} 9. c4 {[%clk 0:02:06]}  Bb7 {[%clk 0:00:53]} 10. e3 {[%clk 0:02:02]}  h6 {[%clk 0:00:47]} 11. Bh4 {[%clk 0:01:58]}  g5 {[%clk 0:00:47]} 12. Bg3 {[%clk 0:01:58]}  Bg7 {[%clk 0:00:48]} 13. Be5 {[%clk 0:01:51]}  Bxf3 {[%clk 0:00:35]} 14. Qxf3 {[%clk 0:01:50]}  Bxe5 {[%clk 0:00:35]} 15. Qxa8 {[%clk 0:01:50]}  Bxb2 {[%clk 0:00:35]} 16. Rxa7 {[%clk 0:01:48]}  O-O {[%clk 0:00:32]} 17. Bd3 {[%clk 0:01:44]}  Bc3+ {[%clk 0:00:32]} 18. Ke2 {[%clk 0:01:45]}  Qb6 {[%clk 0:00:26]} 19. Qb7 {[%clk 0:01:28]}  Qf6 {[%clk 0:00:20]} 20. Qe4 {[%clk 0:01:24]}  Qg7 {[%clk 0:00:17]} 21. h4 {[%clk 0:01:18]}  f5 {[%clk 0:00:11]} 22. Qb7 {[%clk 0:01:13]}  e6 {[%clk 0:00:09]} 23. hxg5 {[%clk 0:01:11]}  Qxg5 {[%clk 0:00:09]} 24. Qf3 {[%clk 0:01:11]}  Bg7 {[%clk 0:00:08]} 25. Rh3 {[%clk 0:01:07]}  Qf6 {[%clk 0:00:07]} 26. Ra2 {[%clk 0:01:02]}  Qc3 {[%clk 0:00:07]} 27. Rg3 {[%clk 0:00:55]}  Kh8 {[%clk 0:00:05]} 28. Qa8 {[%clk 0:00:50]}  d6 {[%clk 0:00:04]} 29. Qa3 {[%clk 0:00:48]}  Qe5 {[%clk 0:00:03]} 30. Qa7 {[%clk 0:00:48]}  Qf6 {[%clk 0:00:00]} 31. Qb7 {[%clk 0:00:44]} 1-0

[Event "November 21 Early 2023"]
[Site "https://www.chess.com"]
[Date "2023.11.21"]
[Round "4"]
[White "BM223344"]
[Black "Tharushi, T H D Niklesha"]
[Result "0-1"]
[Board "176"]
[TimeControl "180+1"]
[BlackFideId "9918264"]
[WhiteElo "2492"]
[BlackElo "1577"]
[BlackTeam "SRI"]
[WhiteClock "0:01:06"]
[BlackClock "0:01:14"]

1. d4 {[%clk 0:03:00]}  Nf6 {[%clk 0:02:58]} 2. c4 {[%clk 0:03:01]}  e6 {[%clk 0:02:57]} 3. Nf3 {[%clk 0:03:01]}  Bb4+ {[%clk 0:02:58]} 4. Bd2 {[%clk 0:03:01]}  Qe7 {[%clk 0:02:58]} 5. g3 {[%clk 0:03:02]}  O-O {[%clk 0:02:58]} 6. Bg2 {[%clk 0:03:02]}  Nc6 {[%clk 0:02:54]} 7. O-O {[%clk 0:03:02]}  d6 {[%clk 0:02:52]} 8. Nc3 {[%clk 0:02:59]}  e5 {[%clk 0:02:50]} 9. d5 {[%clk 0:02:58]}  Nd8 {[%clk 0:02:47]} 10. a3 {[%clk 0:02:58]}  Bxc3 {[%clk 0:02:48]} 11. Bxc3 {[%clk 0:02:58]}  Ne4 {[%clk 0:02:46]} 12. Qc2 {[%clk 0:02:49]}  f5 {[%clk 0:02:46]} 13. e3 {[%clk 0:02:47]}  g5 {[%clk 0:02:44]} 14. Rae1 {[%clk 0:02:47]}  Nf7 {[%clk 0:02:43]} 15. Nd2 {[%clk 0:02:47]}  Nxc3 {[%clk 0:02:41]} 16. Qxc3 {[%clk 0:02:47]}  e4 {[%clk 0:02:41]} 17. f4 {[%clk 0:02:44]}  g4 {[%clk 0:02:41]} 18. Qd4 {[%clk 0:02:43]}  h5 {[%clk 0:02:41]} 19. Nxe4 {[%clk 0:02:34]}  fxe4 {[%clk 0:02:40]} 20. Bxe4 {[%clk 0:02:34]}  Nh6 {[%clk 0:02:38]} 21. Bg2 {[%clk 0:02:34]}  Nf5 {[%clk 0:02:38]} 22. Qd3 {[%clk 0:02:33]}  h4 {[%clk 0:02:37]} 23. e4 {[%clk 0:02:33]}  hxg3 {[%clk 0:02:30]} 24. hxg3 {[%clk 0:02:33]}  Nh6 {[%clk 0:02:25]} 25. Kf2 {[%clk 0:02:21]}  Qf6 {[%clk 0:02:23]} 26. Qd2 {[%clk 0:02:08]}  Bd7 {[%clk 0:02:22]} 27. Rh1 {[%clk 0:02:08]}  Rae8 {[%clk 0:02:21]} 28. Rh5 {[%clk 0:02:04]}  Kg7 {[%clk 0:02:20]} 29. Reh1 {[%clk 0:02:02]}  Rh8 {[%clk 0:02:19]} 30. Rg5+ {[%clk 0:02:00]}  Kf7 {[%clk 0:02:18]} 31. Rgh5 {[%clk 0:02:00]}  Re7 {[%clk 0:02:08]} 32. Kg1 {[%clk 0:01:58]}  Kg7 {[%clk 0:01:56]} 33. Rg5+ {[%clk 0:01:52]}  Kf8 {[%clk 0:01:56]} 34. Rgh5 {[%clk 0:01:49]}  Ke8 {[%clk 0:01:53]} 35. e5 {[%clk 0:01:48]}  dxe5 {[%clk 0:01:52]} 36. fxe5 {[%clk 0:01:48]}  Qb6+ {[%clk 0:01:52]} 37. Qf2 {[%clk 0:01:42]}  Qxf2+ {[%clk 0:01:50]} 38. Kxf2 {[%clk 0:01:42]}  Rf7+ {[%clk 0:01:47]} 39. Ke1 {[%clk 0:01:39]}  Rfh7 {[%clk 0:01:46]} 40. Be4 {[%clk 0:01:39]}  Re7 {[%clk 0:01:38]} 41. e6 {[%clk 0:01:33]}  Bxe6 {[%clk 0:01:38]} 42. Rxh6 {[%clk 0:01:17]}  Rxh6 {[%clk 0:01:36]} 43. Rxh6 {[%clk 0:01:18]}  Bf5 {[%clk 0:01:36]} 44. Kd2 {[%clk 0:01:16]}  Rxe4 {[%clk 0:01:34]} 45. b3 {[%clk 0:01:16]}  Re7 {[%clk 0:01:33]} 46. Rf6 {[%clk 0:01:16]}  Re5 {[%clk 0:01:30]} 47. Kc3 {[%clk 0:01:14]}  Ke7 {[%clk 0:01:29]} 48. Rh6 {[%clk 0:01:14]}  Re3+ {[%clk 0:01:28]} 49. Kb4 {[%clk 0:01:15]}  Bc2 {[%clk 0:01:26]} 50. Kc5 {[%clk 0:01:11]}  Rxg3 {[%clk 0:01:22]} 51. b4 {[%clk 0:01:11]}  Rxa3 {[%clk 0:01:21]} 52. d6+ {[%clk 0:01:11]}  cxd6+ {[%clk 0:01:21]} 53. Rxd6 {[%clk 0:01:12]}  b6+ {[%clk 0:01:21]} 54. Kc6 {[%clk 0:01:11]}  Be4+ {[%clk 0:01:20]} 55. Kc7 {[%clk 0:01:11]}  g3 {[%clk 0:01:18]} 56. Rd4 {[%clk 0:01:10]}  Re3 {[%clk 0:01:16]} 57. Rd7+ {[%clk 0:01:10]}  Kf6 {[%clk 0:01:15]} 58. Rd6+ {[%clk 0:01:10]}  Kf5 {[%clk 0:01:16]} 59. Rd8 {[%clk 0:01:10]}  g2 {[%clk 0:01:16]} 60. Rg8 {[%clk 0:01:10]}  Kf4 {[%clk 0:01:15]} 61. c5 {[%clk 0:01:09]}  Rg3 {[%clk 0:01:15]} 62. Rf8+ {[%clk 0:01:09]}  Ke3 {[%clk 0:01:15]} 63. cxb6 {[%clk 0:01:06]}  axb6 {[%clk 0:01:14]} 0-1

[Event "November 21 Early 2023"]
[Site "https://www.chess.com"]
[Date "2023.11.21"]
[Round "4"]
[White "Devaev, Alexander"]
[Black "Cardozo Munar, Carlos Eduardo"]
[Result "1-0"]
[Board "177"]
[TimeControl "180+1"]
[WhiteFideId "4169395"]
[BlackFideId "4409477"]
[WhiteElo "2172"]
[BlackElo "2067"]
[WhiteTeam "RUS"]
[BlackTeam "COL"]
[WhiteClock "0:00:22"]
[BlackClock "0:00:11"]

1. Nf3 {[%clk 0:02:55]}  d5 {[%clk 0:02:59]} 2. d4 {[%clk 0:02:55]}  c6 {[%clk 0:02:59]} 3. c4 {[%clk 0:02:56]}  Nf6 {[%clk 0:02:59]} 4. Nc3 {[%clk 0:02:56]}  dxc4 {[%clk 0:02:59]} 5. a4 {[%clk 0:02:56]}  h6 {[%clk 0:02:58]} 6. e4 {[%clk 0:02:49]}  Be6 {[%clk 0:02:58]} 7. Be3 {[%clk 0:02:34]}  Qa5 {[%clk 0:02:58]} 8. Qc2 {[%clk 0:02:29]}  Nbd7 {[%clk 0:02:57]} 9. Be2 {[%clk 0:02:28]}  g5 {[%clk 0:02:57]} 10. O-O {[%clk 0:02:26]}  Bg7 {[%clk 0:02:57]} 11. Rad1 {[%clk 0:02:19]}  b5 {[%clk 0:02:46]} 12. d5 {[%clk 0:02:10]}  cxd5 {[%clk 0:02:12]} 13. exd5 {[%clk 0:02:09]}  Bg4 {[%clk 0:02:03]} 14. axb5 {[%clk 0:02:02]}  O-O {[%clk 0:01:58]} 15. Nd4 {[%clk 0:02:03]}  Bxe2 {[%clk 0:01:56]} 16. Qxe2 {[%clk 0:02:04]}  Ne5 {[%clk 0:01:56]} 17. Nc6 {[%clk 0:02:03]}  Nxc6 {[%clk 0:01:55]} 18. dxc6 {[%clk 0:02:03]}  a6 {[%clk 0:01:48]} 19. Qxc4 {[%clk 0:01:57]}  axb5 {[%clk 0:01:48]} 20. Qxb5 {[%clk 0:01:39]}  Qxb5 {[%clk 0:01:47]} 21. Nxb5 {[%clk 0:01:39]}  Ne4 {[%clk 0:01:46]} 22. Bd4 {[%clk 0:01:05]}  Rfc8 {[%clk 0:01:30]} 23. Bxg7 {[%clk 0:01:00]}  Kxg7 {[%clk 0:01:30]} 24. f3 {[%clk 0:01:00]}  Ra5 {[%clk 0:01:11]} 25. Rd5 {[%clk 0:00:43]}  Nf6 {[%clk 0:00:44]} 26. Rc5 {[%clk 0:00:42]}  e6 {[%clk 0:00:32]} 27. Rfc1 {[%clk 0:00:40]}  Nd5 {[%clk 0:00:30]} 28. Nd6 {[%clk 0:00:40]}  Rxc5 {[%clk 0:00:30]} 29. Rxc5 {[%clk 0:00:41]}  Rc7 {[%clk 0:00:30]} 30. Ne8+ {[%clk 0:00:41]}  Kf8 {[%clk 0:00:30]} 31. Nxc7 {[%clk 0:00:42]}  Nxc7 {[%clk 0:00:31]} 32. Rc1 {[%clk 0:00:38]}  Ke7 {[%clk 0:00:32]} 33. Rd1 {[%clk 0:00:38]}  Nd5 {[%clk 0:00:32]} 34. Rxd5 {[%clk 0:00:23]}  exd5 {[%clk 0:00:32]} 35. b4 {[%clk 0:00:24]}  Kd6 {[%clk 0:00:31]} 36. b5 {[%clk 0:00:25]}  Kc7 {[%clk 0:00:32]} 37. g4 {[%clk 0:00:25]}  f6 {[%clk 0:00:23]} 38. Kf2 {[%clk 0:00:25]}  Kc8 {[%clk 0:00:19]} 39. Ke3 {[%clk 0:00:25]}  Kc7 {[%clk 0:00:20]} 40. Kd4 {[%clk 0:00:26]}  Kd6 {[%clk 0:00:21]} 41. h3 {[%clk 0:00:26]}  Ke6 {[%clk 0:00:18]} 42. c7 {[%clk 0:00:24]}  Kd7 {[%clk 0:00:18]} 43. b6 {[%clk 0:00:24]}  f5 {[%clk 0:00:11]} 44. gxf5 {[%clk 0:00:22]} 1-0

[Event "November 21 Early 2023"]
[Site "https://www.chess.com"]
[Date "2023.11.21"]
[Round "4"]
[White "Kazmin_Semyon"]
[Black "Nekoo04"]
[Result "1-0"]
[Board "178"]
[TimeControl "180+1"]
[WhiteElo "2486"]
[BlackElo "2287"]
[WhiteClock "0:01:10"]
[BlackClock "0:00:07"]

1. e4 {[%clk 0:03:00]}  c5 {[%clk 0:02:50]} 2. Nf3 {[%clk 0:03:00]}  d6 {[%clk 0:02:50]} 3. d4 {[%clk 0:03:00]}  cxd4 {[%clk 0:02:51]} 4. Nxd4 {[%clk 0:03:01]}  Nf6 {[%clk 0:02:51]} 5. Nc3 {[%clk 0:03:02]}  g6 {[%clk 0:02:52]} 6. Be3 {[%clk 0:02:54]}  Bg7 {[%clk 0:02:52]} 7. f3 {[%clk 0:02:54]}  O-O {[%clk 0:02:51]} 8. Qd2 {[%clk 0:02:55]}  Nc6 {[%clk 0:02:52]} 9. g4 {[%clk 0:02:54]}  Be6 {[%clk 0:02:49]} 10. Nxe6 {[%clk 0:02:52]}  fxe6 {[%clk 0:02:50]} 11. O-O-O {[%clk 0:02:52]}  Qc8 {[%clk 0:02:33]} 12. Bf4 {[%clk 0:02:23]}  Nd7 {[%clk 0:02:13]} 13. Bc4 {[%clk 0:02:21]}  Nde5 {[%clk 0:02:09]} 14. Be2 {[%clk 0:02:20]}  b5 {[%clk 0:01:19]} 15. h4 {[%clk 0:02:12]}  Rb8 {[%clk 0:00:58]} 16. h5 {[%clk 0:02:07]}  Nc4 {[%clk 0:00:58]} 17. Bxc4 {[%clk 0:02:07]}  bxc4 {[%clk 0:00:59]} 18. Bh6 {[%clk 0:02:05]}  Qb7 {[%clk 0:00:53]} 19. b3 {[%clk 0:02:02]}  cxb3 {[%clk 0:00:35]} 20. axb3 {[%clk 0:01:37]}  Qa6 {[%clk 0:00:20]} 21. Bxg7 {[%clk 0:01:33]}  Qa1+ {[%clk 0:00:20]} 22. Nb1 {[%clk 0:01:33]}  Qxg7 {[%clk 0:00:21]} 23. hxg6 {[%clk 0:01:31]}  hxg6 {[%clk 0:00:21]} 24. Rh3 {[%clk 0:01:31]}  Ne5 {[%clk 0:00:21]} 25. Qe2 {[%clk 0:01:22]}  Rf4 {[%clk 0:00:12]} 26. Rdh1 {[%clk 0:01:20]}  Rbf8 {[%clk 0:00:13]} 27. Qh2 {[%clk 0:01:15]}  Nf7 {[%clk 0:00:07]} 28. Qxf4 {[%clk 0:01:10]} 1-0